[Event "45th FIDE Olympiad 2024"]
[Site "Budapest"]
[Date "2024.09.19"]
[Round "8.78"]
[White "Abdelaziz Bokhit, Badjoiri"]
[Black "Ferguson, Joseph"]
[Result "0-1"]
[WhiteElo "1778"]
[BlackElo "1797"]
[PlyCount "126"]
[EventDate "2024.09.05"]
[EventType "team-tourn"]
[EventCountry "HUN"]
[WhiteTeam "Chad"]
[BlackTeam "Bahamas"]
[WhiteTeamCountry "CHD"]
[BlackTeamCountry "BAH"]
[TimeControl "40/5400+30:1800+30"]

1. e4 e6 2. Nc3 b6 3. Bc4 Bb7 4. d4 Nf6 5. e5 Bxg2 6. exf6 Bxh1 7. fxg7 Bxg7 8. Qg4 Bf8 9. Bf4 d6 10. O-O-O Bc6 11. d5 h5 12. Qh3 Qf6 13. Nge2 Bh6 14. Bxh6 Qxh6+ 15. f4 Bd7 16. Qh4 Rg8 17. Ne4 Rg6 18. N2g3 f5 19. Ng5 e5 20. Re1 a5 21. Bd3 Rxg5 22. fxg5 Qg6 23. Nxh5 Kd8 24. Nf6 Kc8 25. Qh6 Qf7 26. Nxd7 Nxd7 27. g6 Qf6 28. Bb5 e4 29. Qh7 Ne5 30. g7 Qg5+ 31. Kb1 Kb7 32. h4 Qg3 33. Rf1 f4 34. Qxe4 Qxg7 35. Bc6+ Nxc6 36. dxc6+ Ka7 37. Qxf4 Rh8 38. a4 Qg2 39. Qf6 Rxh4 40. Qxh4 Qxf1+ 41. Ka2 Qe2 42. c4 Qf3 43. Qg5 Qxc6 44. Qb5 Qc5 45. Qxc5 bxc5 46. Kb3 c6 47. Kc3 d5 48. b3 d4+ 49. Kd3 Kb6 50. Ke4 Kc7 51. Kf4 Kd6 52. Ke4 Ke6 53. Kf4 Kf6 54. Ke4 Kg5 55. b4 cxb4 56. Kxd4 c5+ 57. Ke4 Kg4 58. Kd5 b3 59. Kxc5 b2 60. Kb5 b1=Q+ 61. Kxa5 Kf5 62. c5 Ke6 63. c6 Kd6 {0-} 0-1

[Event "45th FIDE Olympiad 2024"]
[Site "Budapest"]
[Date "2024.09.19"]
[Round "8.79"]
[White "Prohaszka, Peter"]
[Black "Hovhannisyan, Mher"]
[Result "1-0"]
[ECO "D31"]
[WhiteElo "2542"]
[BlackElo "2414"]
[Annotator "TA"]
[PlyCount "79"]
[EventDate "2024.09.05"]
[EventType "team-tourn"]
[EventCountry "HUN"]
[SourceTitle "playchess.com"]
[Source "ChessBase"]
[SourceQuality "1"]
[WhiteTeam "Hungary B"]
[BlackTeam "Belgium"]
[BlackTeamCountry "BEL"]
[TimeControl "40/5400+30:1800+30"]

{[%evp 9,78,20,13,24,14,16,29,18,29,33,31,37,36,34,100,110,135,108,118,119,104,83,83,43,68,58,60,53,119,89,129,125,185,179,207,189,220,198,315,308,295,303,302,286,301,269,258,254,312,321,360,333,320,320,374,311,325,324,403,386,402,397,588,562,820,831,864,880,888,878,29999]} 1. d4 d5 2. c4 e6 3. Nc3 a6 4. cxd5 exd5 5. Bf4 Nf6 6. e3 Bd6 7. Bg5 {[%cal Bf4g5,Bg5h4,Bh4g3][%mdl 32]} Be6 8. Bd3 {White has an edge.} Nbd7 9. f4 {[%cal Bf2f4,Bf4g5][%mdl 32]} h6 10. Bh4 g5 11. fxg5 Ng4 ({Black should play} 11... Nh7 $14) 12. Nf3 $16 {aiming for g6.} Be7 13. Qe2 hxg5 14. Bg3 Nb6 15. O-O-O {[%cal Be1c1,Bc1b1,Bb1a1][%mdl 32]} Bb4 16. Kb1 {Hoping for Rc1.} Bxc3 17. bxc3 Qe7 18. Ka1 Nh6 {Black is on the road to losing.} (18... Nf6 $14) 19. h4 {White is more active.} g4 20. Ne5 Bf5 (20... Nf5 $16 21. Bxf5 (21. Qxg4 $2 Nxe3 22. Qf3 Nxd1 $19) 21... Bxf5) 21. Rdf1 Bxd3 22. Qxd3 O-O-O 23. Bf4 {Threatens to win with Bxh6.} Nd7 {[#]} (23... Qa3 $142 24. Bxh6 Nc4 25. Nxc4 (25. Nxf7 $2 Qb2#) 25... dxc4 26. Qf5+ (26. Qxc4 Rxh6 27. Rxf7 Rc6 $18) 26... Kb8) 24. Nc6 $1 $18 {[%mdl 512]} Qe6 25. Nxd8 Kxd8 26. Bg5+ Kc8 27. Bxh6 Rxh6 28. Rf4 {[%cal Bf1f4,Bf4e4,Be4e2,Be2e8][%mdl 32]} f6 29. e4 Kb8 30. g3 Nb6 31. Rb1 Rh5 {[%cal Bh6h5,Bh5a5,Ba5a4][%mdl 32]} 32. Rbf1 dxe4 33. Rxe4 (33. Qxe4 Qc4 34. Rc1 (34. Rxf6 $2 Qxc3+ 35. Kb1 Rb5#) (34. Qe8+ Ka7 $16) 34... Ra5) 33... Qd6 34. c4 (34. Rxg4 Qa3 35. Rb1 (35. Rxf6 $2 Nc4 $19) (35. Rg8+ Ka7 $18) 35... Rb5 $18) 34... Ra5 35. Rb1 (35. Rxg4 Qd7 $18) 35... Qc6 (35... f5 {is a better defense.} 36. Rf4 Qe6) 36. d5 {[%cal Bd4d5,Bd5d6][%mdl 32]} (36. Rxg4 Nxc4 37. Rc1 (37. d5 $2 {is a self mate.} Rxa2+ 38. Kxa2 Qa4+) 37... Ra4 $18) 36... Qc5 37. Qd4 Qa3 38. Re2 (38. Qxf6 $2 Qxa2#) 38... Ra4 39. d6 {[#] White wants to mate with dxc7+.} (39. Qxg4 Qc3+ 40. Rbb2 Rb4 $19) 39... Nxc4 40. Re8# {Weighted Error Value: White=0.09 (flawless) /Black=0.50.  Mistake:       	---       	Black=5      Inaccurate:     	White=1     	Black=2      OK:         	White=15    	Black=14     Best:        	White=2     	Black=1} 1-0

[Event "45th FIDE Olympiad 2024"]
[Site "Budapest"]
[Date "2024.09.19"]
[Round "8.79"]
[White "Pride, Avian"]
[Black "Adam, Jamal"]
[Result "0-1"]
[WhiteElo "1743"]
[BlackElo "2013"]
[PlyCount "72"]
[EventDate "2024.09.05"]
[EventType "team-tourn"]
[EventCountry "HUN"]
[WhiteTeam "Bahamas"]
[BlackTeam "Chad"]
[WhiteTeamCountry "BAH"]
[BlackTeamCountry "CHD"]
[TimeControl "40/5400+30:1800+30"]

1. d4 Nf6 2. c4 e5 3. d5 Bc5 4. h3 d6 5. Nc3 Bf5 6. Bg5 h6 7. Bxf6 Qxf6 8. e4 Bd7 9. Nf3 a5 10. Be2 Na6 11. a3 O-O 12. O-O Qe7 13. Qc2 Bb6 14. Ne1 Nc5 15. Nd3 Qg5 16. Kh1 Qh4 17. Nxc5 Bxc5 18. Bd3 g5 19. Qe2 Bxh3 20. gxh3 Qxh3+ 21. Kg1 g4 22. Nd1 g3 23. Qh5 Qxh5 24. Kg2 Qh2+ 25. Kf3 g2 26. Ne3 gxf1=Q 27. Rxf1 Bxe3 28. Kxe3 f5 29. exf5 Qf4+ 30. Ke2 e4 31. Rg1+ Kh7 32. Bc2 Rxf5 33. Rf1 Rg8 34. Ke1 Qc1+ 35. Bd1 e3 36. fxe3 Qxe3+ {0-} 0-1

[Event "45th FIDE Olympiad 2024"]
[Site "Budapest"]
[Date "2024.09.19"]
[Round "8.80"]
[White "Lenaerts, Lennert"]
[Black "Papp, Gabor"]
[Result "1/2-1/2"]
[ECO "B40"]
[WhiteElo "2300"]
[BlackElo "2550"]
[Annotator "TA"]
[PlyCount "79"]
[EventDate "2024.09.05"]
[EventType "team-tourn"]
[EventCountry "HUN"]
[SourceTitle "playchess.com"]
[Source "ChessBase"]
[SourceQuality "1"]
[WhiteTeam "Belgium"]
[BlackTeam "Hungary B"]
[WhiteTeamCountry "BEL"]
[TimeControl "40/5400+30:1800+30"]

{[%evp 9,79,12,16,12,12,7,3,0,23,18,24,2,7,8,10,-45,-46,-33,-29,-30,-26,-31,-6,-22,-14,-16,-11,-6,-27,-4,-10,-11,0,0,0,0,0,0,0,0,47,0,0,0,0,0,0,0,0,0,0,0,0,0,0,0,0,-43,-45,-44,0,0,0,0,0,0,0,0,0,0,0,0]} 1. e4 c5 2. Nf3 e6 3. g3 Nc6 4. Bg2 Nf6 5. Qe2 e5 6. O-O Be7 7. Nc3 d6 8. Nd5 h6 9. c3 O-O 10. Ne1 Nxd5 11. exd5 Nb8 {[#]} 12. d4 cxd4 13. cxd4 exd4 14. b3 Bf6 {[%cal Od4d3] aiming for ...d3!} 15. Bb2 b6 16. Qd2 Ba6 17. Nd3 Nd7 {Black wants to play ...Nc5.} 18. Rfe1 Bxd3 $1 19. Qxd3 Nc5 20. Qd2 a5 21. Bxd4 Bxd4 22. Qxd4 Qd7 23. Re3 Rfe8 24. Rae1 Kf8 (24... b5 $11) 25. Bf1 (25. a3 $14) 25... Rxe3 $11 26. Rxe3 Re8 27. a3 Rxe3 28. Qxe3 {[%mdl 4096] Endgame. KQB-KQN} Qe7 29. Qc3 Qe5 30. Qc4 Ke7 31. b4 axb4 32. axb4 Nd7 33. f4 Qe3+ 34. Kg2 Kd8 35. Qc6 {[%cal Of1b5] [#] Black must now prevent Bb5! The position is equal.} Qe4+ 36. Kh3 $1 {Bb5 is the strong threat.} Qf5+ (36... Qxb4 $2 37. Bb5 $18) 37. Kg2 {[%cal Of1b5]} Qe4+ 38. Kh3 $1 {Bb5 would now be deadly.} Qf5+ (38... Qxb4 $2 {too greedy.} 39. Bb5 $18) 39. Kg2 {[%cal Of1b5]} Qe4+ 40. Kh3 $1 {Weighted Error Value: White=0.09 (flawless) /Black=0.06 (flawless) .  Mistake:       	White=2     	Black=1      Inaccurate:     	White=1     	Black=1      OK:         	White=14    	Black=22     Best:        	White=3     	---        Strong:       	White=3     	Black=1} 1/2-1/2

[Event "45th FIDE Olympiad 2024"]
[Site "Budapest"]
[Date "2024.09.19"]
[Round "8.80"]
[White "Hassaballa, Ahmed Hassaballa"]
[Black "Skinner, Francis"]
[Result "1-0"]
[WhiteElo "1902"]
[BlackElo "1628"]
[PlyCount "121"]
[EventDate "2024.09.05"]
[EventType "team-tourn"]
[EventCountry "HUN"]
[WhiteTeam "Chad"]
[BlackTeam "Bahamas"]
[WhiteTeamCountry "CHD"]
[BlackTeamCountry "BAH"]
[TimeControl "40/5400+30:1800+30"]

1. e4 e5 2. Nf3 Nc6 3. Nc3 Bc5 4. Bc4 Nf6 5. O-O O-O 6. d3 d6 7. a3 Bg4 8. h3 Bxf3 9. Qxf3 Nd4 10. Qd1 a6 11. Bg5 h6 12. Bh4 c6 13. Nb1 Qe7 14. c3 Ne6 15. Qf3 Nf4 16. Nd2 b5 17. Ba2 Rad8 18. Rfd1 g5 19. Bg3 N6h5 20. Nf1 Qf6 21. Kh2 Kh7 22. Ne3 Ng7 23. d4 Bb6 24. Rac1 h5 25. Nf5 Kg6 26. Bxf4 Nxf5 27. exf5+ Kh6 28. Be3 d5 29. h4 Rg8 30. hxg5+ Rxg5 31. Bxg5+ Qxg5 32. Qe3 e4 33. Qxg5+ Kxg5 34. Kg1 Kxf5 35. Kf1 Bc7 36. g3 Kg4 37. Ke2 f5 38. Rh1 Rh8 39. Rh4+ Kg5 40. Rch1 Rh6 41. f4+ Kg6 42. Ke3 Bd8 43. R4h3 h4 44. gxh4 Kh5 45. Rg1 Bf6 46. Bb3 Rh7 47. Bd1+ Kh6 48. Rhg3 Rg7 49. Rxg7 Bxg7 50. h5 c5 51. Rg6+ Kh7 52. Rxa6 b4 53. axb4 cxb4 54. Ra7 bxc3 55. bxc3 Kh6 56. Rxg7 Kxg7 57. Bb3 Kh6 58. Bxd5 Kxh5 59. Be6 Kg6 60. c4 Kf6 61. d5 1-0

[Event "45th FIDE Olympiad 2024"]
[Site "Budapest"]
[Date "2024.09.19"]
[Round "8.81"]
[White "Cori, Jorge"]
[Black "Ragger, Markus"]
[Result "1/2-1/2"]
[ECO "D35"]
[WhiteElo "2609"]
[BlackElo "2601"]
[Annotator "TA"]
[PlyCount "62"]
[EventDate "2024.09.05"]
[EventType "team-tourn"]
[EventCountry "HUN"]
[SourceTitle "playchess.com"]
[Source "ChessBase"]
[SourceQuality "1"]
[WhiteTeam "Peru"]
[BlackTeam "Austria"]
[WhiteTeamCountry "PER"]
[BlackTeamCountry "AUT"]
[TimeControl "40/5400+30:1800+30"]

{[%evp 18,62,10,0,0,7,0,-9,0,-4,0,0,6,0,14,8,9,9,23,14,22,16,18,16,31,24,21,14,22,0,0,2,25,24,25,0,0,0,0,0,0,0,0,0,0,0,0]} 1. d4 Nf6 2. Nf3 d5 3. c4 e6 4. Nc3 Nbd7 5. cxd5 exd5 6. Bf4 c6 7. e3 Nh5 8. Bg5 Be7 9. Bxe7 Qxe7 10. Qc2 g6 11. O-O-O Nb6 12. Ne5 Be6 13. Kb1 Nf6 14. Bd3 Nfd7 15. Nxd7 Qxd7 16. h4 h5 17. Ka1 Qe7 18. Rc1 {[%cal Bd1c1,Bc1c3,Bc3c5][%mdl 32]} O-O-O 19. Na4 Kb8 20. Nc5 Bc8 21. Qb3 Ka8 22. Rc3 Nd7 23. Qa4 {[#] aiming for Ra3.} Nxc5 24. Rxc5 Rd6 25. b4 Kb8 26. b5 cxb5 {The position is equal.} 27. Qxb5 Rb6 28. Qa5 Be6 29. g3 Qf6 30. Qd2 Rc8 31. Rhc1 Rxc5 {A balanced but interesting game.   Weighted Error Value: White=0.05 (flawless) /Black=0.05 (flawless) .  OK:         	White=7     	Black=11     Best:        	---       	Black=1} 1/2-1/2

[Event "45th FIDE Olympiad 2024"]
[Site "Budapest"]
[Date "2024.09.19"]
[Round "8.81"]
[White "Bodin-Hullin, Thomas"]
[Black "Solomon, Joshua"]
[Result "1-0"]
[WhiteElo "1855"]
[BlackElo "1587"]
[PlyCount "61"]
[EventDate "2024.09.05"]
[EventType "team-tourn"]
[EventCountry "HUN"]
[WhiteTeam "Senegal"]
[BlackTeam "Antigua and Barbuda"]
[WhiteTeamCountry "SEN"]
[TimeControl "40/5400+30:1800+30"]

1. e4 c6 2. Nc3 d5 3. Nf3 dxe4 4. Nxe4 Nf6 5. Qe2 e6 6. d4 Nbd7 7. Ng3 Bd6 8. Bd2 O-O 9. O-O-O b5 10. Ne5 Qc7 11. f4 Bb7 12. Nh5 Nxh5 13. Qxh5 Nf6 14. Qh4 c5 15. dxc5 Qxc5 16. Bd3 Rfd8 17. Kb1 a5 18. Rhe1 Be7 19. Qh3 g6 20. g4 b4 21. f5 Nd5 22. fxe6 Nc3+ 23. Ka1 fxe6 24. g5 Bd5 25. Nxg6 Bxg5 26. Bxg5 Rd7 27. Ne5 Rb7 28. Be3 Qe7 29. Rg1+ Kf8 30. Rdf1+ Ke8 31. Rg8+ 1-0

[Event "45th FIDE Olympiad 2024"]
[Site "Budapest"]
[Date "2024.09.19"]
[Round "8.82"]
[White "Horvath, Dominik"]
[Black "Flores Quillas, Diego Saul Rodri"]
[Result "1/2-1/2"]
[ECO "B39"]
[WhiteElo "2559"]
[BlackElo "2451"]
[Annotator "TA"]
[PlyCount "148"]
[EventDate "2024.09.05"]
[EventType "team-tourn"]
[EventCountry "HUN"]
[SourceTitle "playchess.com"]
[Source "ChessBase"]
[SourceQuality "1"]
[WhiteTeam "Austria"]
[BlackTeam "Peru"]
[WhiteTeamCountry "AUT"]
[BlackTeamCountry "PER"]
[TimeControl "40/5400+30:1800+30"]

{[%evp 69,148,0,0,0,0,0,0,0,0,0,0,0,0,0,0,0,0,0,0,0,0,0,0,0,0,0,0,0,0,-24,0,-24,-24,-24,-24,-48,0,0,0,0,0,0,0,0,0,0,0,0,0,0,0,-20,-20,-20,-20,-20,-20,-20,-20,-20,-20,-20,-20,-20,-20,-20,-20,-20,-20,-20,-20,-20,-12,-20,-20,-20,0,-20,0,-20,0]} 1. Nf3 c5 2. c4 g6 3. e4 Bg7 4. d4 cxd4 5. Nxd4 Nc6 6. Be3 Nf6 7. Nc3 Ng4 8. Qxg4 Nxd4 9. Qd1 Ne6 10. Rc1 d6 11. g3 {B39: Sicilian: Maroczy Bind with 5...Bg7 and 7...Ng4.} Bd7 12. Bg2 a5 $146 ({Predecessor:} 12... Bc6 13. O-O O-O 14. b4 b6 15. Qd2 Re8 16. f4 Nf8 17. Rfd1 Rc8 18. Nd5 Qd7 19. Bd4 Bxd5 20. exd5 Bxd4+ 21. Qxd4 Qa4 22. Qd2 a5 23. bxa5 bxa5 24. Bf1 {½-½ Penrose,J-Eliskases,E Mar del Plata International-25 1962 (4)}) 13. b3 Bc6 14. O-O O-O 15. a3 Nc5 16. b4 axb4 17. axb4 Na4 18. Nxa4 Bxa4 19. Qd3 Bd7 20. Rfd1 Ra2 21. Rd2 Rxd2 22. Qxd2 Qa8 23. c5 Be6 24. Bg5 dxc5 25. Bxe7 cxb4 26. Qxb4 Rc8 27. Rd1 Qa7 28. Bg5 h5 29. Be3 Qb8 30. Qb6 Qc7 31. Rb1 Qxb6 32. Rxb6 Bd4 33. Rxb7 Bxe3 34. fxe3 Rc1+ 35. Kf2 Rc2+ 36. Kg1 Re2 37. Bf3 Rxe3 38. Kf2 Ra3 39. h4 Kg7 40. Rb5 Kf6 41. Rc5 Ke7 42. Rb5 Bd7 43. Rb7 Kd8 44. Be2 Kc8 45. Rb4 Be6 46. Rd4 Kc7 47. Bd3 Ra8 48. Ke3 Kc6 49. e5 Kc5 50. Rd6 Ra3 51. Kf4 Ra4+ 52. Ke3 Ra3 (52... Rg4 $15 {should be considered.} 53. Kf2 Bb3) 53. Kf4 $11 Bd5 54. Be4 $1 Bxe4 55. Kxe4 Rxg3 56. Rd5+ Kc4 57. Rd4+ Kc5 58. Rd5+ Kc4 59. Rd4+ Kc3 60. Rd7 Rg4+ 61. Kf3 Kc4 62. Rxf7 Kd5 63. Rf4 Rg1 64. Ra4 Kxe5 65. Ra5+ Kf6 66. Ra6+ Kg7 67. Ra7+ Kh6 68. Ra4 Rb1 69. Kg3 Rb3+ 70. Kg2 Kg7 71. Rf4 Rb5 72. Kg3 Rb3+ 73. Kg2 Rb5 74. Kg3 Rb3+ 1/2-1/2

[Event "45th FIDE Olympiad 2024"]
[Site "Budapest"]
[Date "2024.09.19"]
[Round "8.82"]
[White "Matthew, Bailey"]
[Black "Lesbros, Bernard"]
[Result "1-0"]
[WhiteElo "1548"]
[BlackElo "1938"]
[PlyCount "117"]
[EventDate "2024.09.05"]
[EventType "team-tourn"]
[EventCountry "HUN"]
[WhiteTeam "Antigua and Barbuda"]
[BlackTeam "Senegal"]
[BlackTeamCountry "SEN"]
[TimeControl "40/5400+30:1800+30"]

1. e4 c5 2. d4 cxd4 3. c3 d3 4. Bxd3 Nc6 5. Nf3 g6 6. c4 Bg7 7. O-O d6 8. h3 Nf6 9. Nc3 O-O 10. Be3 Be6 11. Qd2 Rc8 12. b3 Qa5 13. Rac1 Rfd8 14. Bb1 Qh5 15. Ng5 Bd7 16. f4 e5 17. Nd5 Nxd5 18. exd5 Nd4 19. g4 Bxg4 20. Bxd4 Bxh3 21. Nxh3 Qxh3 22. Bxa7 exf4 23. Qxf4 Be5 24. Qf2 Re8 25. Qg2 Qh4 26. Bf2 Bd4 27. Bxd4 Qxd4+ 28. Qf2 Qg4+ 29. Qg2 Qd4+ 30. Rf2 Qe3 31. Rcf1 Re5 32. Qf3 Rg5+ 33. Kh1 Rh5+ 34. Rh2 Rxh2+ 35. Kxh2 Qh6+ 36. Qh3 Qd2+ 37. Kh1 f5 38. Qg3 Re8 39. Bxf5 Qh6+ 40. Kg1 Re3 41. Be6+ Kh8 42. Qf4 Qxf4 43. Rxf4 b6 44. Rf7 Re2 45. Ra7 h5 46. Ra6 g5 47. Rxb6 Rxa2 48. Rxd6 Kg7 49. Rb6 Kf6 50. Bg4+ Ke5 51. Bxh5 Kf4 52. d6 Kg3 53. Kf1 Rh2 54. d7 Rd2 55. Be8 g4 56. c5 Kf3 57. Ke1 Rd5 58. Rd6 Re5+ 59. Kd2 1-0

[Event "45th FIDE Olympiad 2024"]
[Site "Budapest"]
[Date "2024.09.19"]
[Round "8.83"]
[White "Fernandez Sanchez, Fernando Miguel"]
[Black "Blohberger, Felix"]
[Result "1/2-1/2"]
[ECO "C50"]
[WhiteElo "2399"]
[BlackElo "2520"]
[Annotator "TA"]
[PlyCount "49"]
[EventDate "2024.09.05"]
[EventType "team-tourn"]
[EventCountry "HUN"]
[SourceTitle "playchess.com"]
[Source "ChessBase"]
[SourceQuality "1"]
[WhiteTeam "Peru"]
[BlackTeam "Austria"]
[WhiteTeamCountry "PER"]
[BlackTeamCountry "AUT"]
[TimeControl "40/5400+30:1800+30"]

{[%evp 9,49,11,17,18,22,22,16,18,20,13,21,16,33,26,26,4,14,10,15,7,21,12,11,11,20,18,18,15,19,12,26,16,16,11,26,21,25,0,13,0,7,0]} 1. e4 e5 2. Nf3 Nc6 3. Bc4 Bc5 4. d3 d6 5. a4 Nf6 6. a5 Bb4+ 7. Bd2 Bxd2+ 8. Nbxd2 O-O 9. O-O Rb8 10. c3 b5 11. axb6 axb6 12. Bb5 Ne7 13. d4 c6 14. Bd3 Qc7 15. Re1 Ng6 16. Bf1 Bb7 17. b4 Ra8 18. Qc2 Rfe8 19. Rad1 h6 20. h3 Bc8 21. Nc4 {[%cal Oc4d6] Hoping for Nxd6!} Re6 22. Ne3 Re8 23. Nc4 {[%cal Oc4d6] Threatens to win with Nxd6!} Re6 24. Ne3 Re8 25. Nc4 {Not much happened in this game.   Weighted Error Value: White=0.05 (flawless) /Black=0.04 (flawless) .  OK:         	White=7     	Black=7      Best:        	White=1     	---} 1/2-1/2

[Event "45th FIDE Olympiad 2024"]
[Site "Budapest"]
[Date "2024.09.19"]
[Round "8.83"]
[White "Marochkina, Nadezhda Valerevna"]
[Black "Farquhar, Abner"]
[Result "1-0"]
[WhiteElo "1792"]
[BlackElo "1678"]
[PlyCount "123"]
[EventDate "2024.09.05"]
[EventType "team-tourn"]
[EventCountry "HUN"]
[WhiteTeam "Senegal"]
[BlackTeam "Antigua and Barbuda"]
[WhiteTeamCountry "SEN"]
[TimeControl "40/5400+30:1800+30"]

1. d4 d5 2. c4 e6 3. Nf3 Nf6 4. Bg5 dxc4 5. Nc3 Be7 6. e3 c5 7. Bxc4 cxd4 8. Nxd4 e5 9. Bb5+ Kf8 10. Nf3 a6 11. Be2 Qxd1+ 12. Rxd1 Nc6 13. O-O Be6 14. Rd2 Bb4 15. Rfd1 Bxc3 16. bxc3 Ne4 17. Rc2 f6 18. Bh4 Rc8 19. Nd2 Nb4 20. cxb4 Rxc2 21. Nxe4 Rxe2 22. Ng3 Rxa2 23. Rd8+ Ke7 24. Rxh8 Ra1+ 25. Nf1 Bc4 26. h3 Bxf1 27. Kh2 Bd3 28. Rc8 Be4 29. Rc5 Kd7 30. b5 a5 31. f3 b6 32. Rc3 Bb7 33. Rb3 a4 34. Rb4 Bd5 35. f4 a3 36. Ra4 a2 37. e4 Rb1 38. Ra7+ Kd6 39. fxe5+ fxe5 40. Be7+ Ke6 41. exd5+ Kxd5 42. Rxa2 Rxb5 43. Bd8 Rb1 44. Ra7 b5 45. Rxg7 b4 46. Rxh7 b3 47. Rb7 Kc4 48. h4 b2 49. Bf6 Rf1 50. Rxb2 Rxf6 51. g4 e4 52. g5 Rf4 53. Kg3 Rf3+ 54. Kg4 Rf1 55. Rb7 e3 56. Re7 Kd3 57. Rd7+ Kc2 58. Re7 Kd2 59. g6 e2 60. Kh5 Rg1 61. Kh6 Rg4 62. h5 1-0

[Event "45th FIDE Olympiad 2024"]
[Site "Budapest"]
[Date "2024.09.19"]
[Round "8.84"]
[White "Baidetskyi, Valentin"]
[Black "Delgado Romero, Marco"]
[Result "1-0"]
[ECO "B38"]
[WhiteElo "2512"]
[BlackElo "2390"]
[Annotator "TA"]
[PlyCount "103"]
[EventDate "2024.09.05"]
[EventType "team-tourn"]
[EventCountry "HUN"]
[SourceTitle "playchess.com"]
[Source "ChessBase"]
[SourceQuality "1"]
[WhiteTeam "Austria"]
[BlackTeam "Peru"]
[WhiteTeamCountry "AUT"]
[BlackTeamCountry "PER"]
[TimeControl "40/5400+30:1800+30"]

{[%evp 11,103,51,41,36,37,26,40,-13,28,24,61,0,0,0,0,-10,0,-3,0,-43,-22,-37,-37,-33,0,0,0,0,-7,0,-13,-12,-7,-6,-26,-49,25,16,95,29,38,0,0,0,170,164,199,212,373,374,375,274,288,284,284,192,332,168,159,137,321,261,269,308,329,326,446,305,317,266,412,418,514,390,918,947,1298,1215,675,1254,1534,1352,1664,1137,29987,29988,29988,29989,29992,29991,29991,29989,29989,958]} 1. e4 c5 2. Nf3 {[%cal Bg1f3,Bf3d4,Bd4b5][%mdl 32]} g6 3. c4 Bg7 4. d4 cxd4 5. Nxd4 Nc6 6. Be3 Qb6 7. Nb5 Qa5+ 8. N5c3 d6 9. a3 (9. Be2 $14) 9... Nf6 10. f3 Be6 11. Nd2 (11. Be2 $14) 11... Nd7 $11 12. Rc1 O-O 13. Nb3 Qd8 14. Be2 a5 15. Na1 Nc5 (15... a4 $5) 16. b3 f5 17. exf5 gxf5 18. f4 Ne4 19. Nxe4 fxe4 20. O-O d5 21. cxd5 Bxd5 22. Rc5 Bf7 23. Qb1 a4 (23... Nd4 $15 24. Bg4 e5 25. Rxe5 Bxe5 26. fxe5 h5 27. Qxe4 Qh4 28. Qxd4 Qxg4 29. Qxg4+ hxg4) 24. Rd1 $36 {[%mdl 2048] Black is under pressure.} Qb6 (24... Nd4 $11 {keeps the balance.} 25. Bf1 axb3 (25... Bxb3 $2 26. Nxb3 axb3 27. Qxe4 $18)) 25. b4 (25. Qxe4 $16 e5 26. Rb5 (26. bxa4 exf4 27. Bd3 Bg6 $11) (26. fxe5 axb3 27. Bd3 Bg6 $16) (26. Rxe5 Qc7 $14)) 25... Rfd8 26. Qxe4 {[%cal Od1d3] Black must now prevent Rd3!} Rxd1+ 27. Bxd1 {aiming for Rg5.} Rd8 $2 (27... Qd8 $1 $11 28. Qb1 e5 29. fxe5 Bg6) 28. Bxa4 $18 Nd4 29. Nc2 $1 (29. Qxe7 Bf6 30. Rg5+ Bg6 31. Rxg6+ hxg6 $11) 29... e5 (29... Qe6 30. Qxe6 (30. Qxb7 $2 {perishes.} Nxc2 31. Qf3 Qxe3+ $19) 30... Nxe6) 30. fxe5 Bg6 31. Qh4 Nf5 32. Qc4+ Bf7 33. Qe2 {[%cal Oc5c6]} Qg6 (33... Nxe3 $142 34. Nxe3 Qa7) 34. Bb5 (34. Bf2 $142) 34... Nxe3 35. Nxe3 {[%cal Bc2e3,Be3f1,Bf1g3,Bg3h5][%mdl 32] Hoping for Qg4.} Bh6 $2 {Loses the game.} (35... Qe4 $16 36. Bc4 Bxe5) 36. Nf1 Kh8 37. Bc4 Bf8 38. Rb5 (38. e6 Bxc5+ 39. bxc5 Be8 $16) 38... Be8 39. Rd5 Rc8 40. Rd1 Bc6 (40... Qg5 $142) 41. Ng3 Bg7 42. Nh5 Be4 $2 (42... Ba4 43. Re1 Qb6+ 44. Kh1 Qd4 45. Nxg7 Qxc4 46. Qxc4 Rxc4) 43. Nxg7 Rxc4 44. Nh5 Rc8 {[#] Dodges Rd8+} 45. e6 $1 {[%cal Be5e6,Be6e7][%mdl 32] e7 would kill now.} Kg8 {[#]} 46. Qxe4 $3 {[%mdl 512]} Qxh5 {[%mdl 4096] Endgame. KQR-KQR} (46... Qxe4 47. Nf6+) 47. Rf1 {[%cal Oe6e7] Intending e7! and mate.} Qg5 48. e7 {White mates.} Re8 49. Qe6+ Kg7 50. Rf7+ Kh8 51. Rf8+ Kg7 52. Qg8+ {Weighted Error Value: White=0.36/Black=0.55.  Loses game:     	---       	Black=2      Mistake:       	White=4     	Black=6      Inaccurate:     	White=4     	Black=5      OK:         	White=15    	Black=10     Best:        	White=1     	Black=2      Strong:       	White=1     	---} (52. Qf7+ $142 Kh6 53. Qxe8 (53. Qe6+ Qg6 54. Qxg6+ Kxg6 55. Rxe8 Kf7 56. Rb8 Kxe7 57. Rxb7+ Ke6 58. Rxh7 Kd6) 53... Qe3+ 54. Rf2 Qe1+ 55. Rf1 Qe3+ 56. Kh1 Qe6 57. Qf8+ (57. h4 b6 58. Qf8+ Kh5 59. e8=Q+ Qxe8 60. Rf5+ Kxh4 61. Qf6+ Kg4 62. Qg5#) 57... Kh5 58. e8=Q+ (58. e8=R Qg6 59. Rf5+ Qxf5 60. Qxf5+ Kh6 61. Re7 b6 62. Rxh7#) 58... Qxe8 59. Qxe8+ Kg5 60. Qe6 Kh5 61. Rf5+ Kh4 62. Qe4#) 1-0

[Event "45th FIDE Olympiad 2024"]
[Site "Budapest"]
[Date "2024.09.19"]
[Round "8.84"]
[White "Solomon, Jonathan"]
[Black "Cisse, Amadou Lamine"]
[Result "0-1"]
[WhiteElo "1536"]
[BlackElo "1948"]
[PlyCount "40"]
[EventDate "2024.09.05"]
[EventType "team-tourn"]
[EventCountry "HUN"]
[WhiteTeam "Antigua and Barbuda"]
[BlackTeam "Senegal"]
[BlackTeamCountry "SEN"]
[TimeControl "40/5400+30:1800+30"]

1. d4 d6 2. Bf4 Nf6 3. e3 g6 4. Nf3 Bg7 5. Nbd2 Nbd7 6. Bd3 O-O 7. O-O Re8 8. e4 e5 9. dxe5 dxe5 10. Be3 h6 11. h3 Qe7 12. Re1 Nh5 13. Nc4 Nf4 14. Qd2 g5 15. Rad1 Qf6 16. b3 Nxh3+ 17. Kh2 Nf4 18. g3 Nxd3 19. Kg2 Nxe1+ 20. Rxe1 Nf8 {0-} 0-1